bitfinex/quotes_BTCUSD_20251007
["timestamp","ask_amount","ask_price","bid_price","bid_amount"]
[1759849921252,0.00050183,122200.0,122190.0,1.33349157]
[1759849921460,0.00050183,122200.0,122190.0,1.41348837]
[1759849921667,0.00050183,122200.0,122190.0,0.6701568]
[1759849921878,0.00050183,122200.0,122190.0,1.33056631]
[1759849922084,0.00050183,122200.0,122190.0,1.41368837]
[1759849922707,0.00050183,122200.0,122190.0,1.25000886]
[1759849923120,0.00050183,122200.0,122190.0,1.41368837]
[1759849923534,0.00355955,122200.0,122190.0,1.41368837]
[1759849923958,0.00355955,122200.0,122180.0,0.42532]
[1759849924186,0.00050183,122200.0,122190.0,0.24976]
[1759849925026,0.23876856,122200.0,122190.0,0.24988]
[1759849925231,0.23876795,122200.0,122190.0,0.24988]
[1759849925433,0.23876795,122200.0,122190.0,0.274868]
[1759849925643,0.17187285,122190.0,122140.0,0.23723503]
[1759849925871,0.16371971,122160.0,122150.0,0.42532]
[1759849926086,0.32144177,122160.0,122150.0,0.33496]
[1759849926327,0.15772206,122160.0,122150.0,0.33496]
[1759849926530,0.08312206,122160.0,122150.0,0.368456]
[1759849926745,0.24647894,122180.0,122150.0,0.368456]
[1759849926746,0.23829298,122180.0,122150.0,0.033496]
[1759849926955,0.23831971,122160.0,122150.0,0.033496]
[1759849927171,0.32144177,122160.0,122150.0,0.0001508]
[1759849927387,1.25431733,122160.0,122150.0,0.0001508]
[1759849927636,0.66144177,122160.0,122150.0,0.0001508]
[1759849928052,1.59431733,122160.0,122150.0,0.0001508]
[1759849928745,0.65144177,122160.0,122150.0,0.0001508]
[1759849929214,1.58431733,122160.0,122150.0,0.0001508]
[1759849930132,1.09662208,122140.0,122130.0,0.18976459]
[1759849930353,1.17974414,122140.0,122130.0,0.02551321]
[1759849930570,0.16378674,122110.0,122100.0,0.06536749]
[1759849930780,0.2469088,122110.0,122100.0,0.22576749]
[1759849930998,0.3215088,122110.0,122100.0,0.22576749]
[1759849931207,0.3215088,122110.0,122100.0,0.19148475]
[1759849932104,0.17201503,122090.0,122060.0,0.15044749]
[1759849932344,0.24661503,122090.0,122070.0,0.24952]
[1759849932566,0.0746,122090.0,122070.0,0.24952]
[1759849932788,0.24692226,122100.0,122070.0,0.28951675]
[1759849933004,0.32152226,122100.0,122070.0,0.28951675]
[1759849933214,0.16382699,122080.0,122070.0,0.03999675]
[1759849933423,0.16384238,122070.0,122050.0,0.42564]
[1759849933558,0.15772206,122070.0,122060.0,0.2494]
[1759849933773,0.32156247,122070.0,122060.0,0.316904]
[1759849934022,0.15772206,122070.0,122060.0,0.316904]
[1759849934224,0.32156247,122070.0,122060.0,0.316904]
[1759849934425,0.15772206,122070.0,122060.0,0.2494]
[1759849934628,0.08312206,122070.0,122060.0,0.2494]
[1759849935271,0.15772206,122070.0,122060.0,0.2494]
[1759849935709,0.2465902,122100.0,122060.0,0.48466089]
[1759849935910,0.08312206,122090.0,122060.0,0.57285038]
[1759849936099,0.08312206,122100.0,122070.0,0.50384019]
[1759849936296,0.08312206,122100.0,122080.0,0.24936]
[1759849936513,0.32152502,122100.0,122080.0,0.24936]
[1759849936703,0.32973391,122090.0,122080.0,0.24932]
[1759849936906,0.32973391,122090.0,122080.0,0.374252]
[1759849937115,0.32973391,122090.0,122080.0,0.34932]
[1759849937554,1.26260947,122090.0,122080.0,0.1]
[1759849938177,0.32973391,122090.0,122080.0,0.1]
[1759849938393,1.26260947,122090.0,122080.0,0.1]
[1759849939282,0.66973391,122090.0,122080.0,0.1]
[1759849939504,1.60260947,122090.0,122080.0,0.1]
[1759849939732,2.47290447,122090.0,122080.0,0.1]
[1759849940200,1.26027591,122090.0,122080.0,0.1]
[1759849940394,2.12945747,122090.0,122080.0,0.1]
[1759849940605,0.71838391,122090.0,122080.0,0.1]
[1759849940811,1.65125947,122090.0,122080.0,0.1]
[1759849941308,0.96718391,122090.0,122080.0,0.1]
[1759849941505,0.71838391,122090.0,122080.0,0.1]
[1759849941711,0.37837631,122090.0,122080.0,0.1]
[1759849942327,0.20637206,122090.0,122080.0,0.1]
[1759849942530,0.37018564,122090.0,122080.0,0.1]
[1759849942746,0.20637206,122090.0,122080.0,0.1]
[1759849943003,0.24693564,122090.0,122080.0,0.1]
[1759849943408,0.37018564,122090.0,122080.0,0.1]
[1759849943612,0.48287564,122090.0,122080.0,0.1]
[1759849944054,0.45332564,122090.0,122080.0,0.1]
[1759849944262,0.44832564,122090.0,122080.0,0.1]
[1759849945313,0.42080564,122090.0,122080.0,0.1]
[1759849945531,0.22976206,122090.0,122080.0,0.12138]
[1759849945732,0.22976206,122090.0,122080.0,0.1]
[1759849945733,0.29058564,122090.0,122080.0,0.1]
[1759849945939,1.3812012,122090.0,122080.0,0.1]
[1759849946087,0.44832564,122090.0,122080.0,0.1]
[1759849946292,1.3812012,122090.0,122080.0,0.1]
[1759849946692,0.44832564,122090.0,122080.0,0.1]
[1759849946900,0.44832564,122090.0,122080.0,0.10255078]
[1759849947761,1.5628542,122090.0,122080.0,0.10255078]
[1759849947968,0.90889864,122090.0,122080.0,0.10255078]
[1759849948144,1.8417742,122090.0,122080.0,0.10255078]
[1759849949316,0.90889864,122090.0,122080.0,0.10255078]
[1759849949541,1.8417742,122090.0,122080.0,0.10255078]
[1759849949759,1.8667742,122090.0,122080.0,0.10255078]
[1759849950405,2.0900542,122090.0,122080.0,0.10255078]
[1759849950656,2.1150542,122090.0,122080.0,0.10255078]
[1759849950872,1.8667742,122090.0,122080.0,0.10255078]
[1759849951144,2.1149742,122090.0,122080.0,0.10255078]
[1759849951351,1.8667742,122090.0,122080.0,0.10255078]
[1759849951552,2.1149342,122090.0,122080.0,0.10255078]
[1759849951781,2.1148942,122090.0,122080.0,0.10255078]
[1759849952967,0.50385384,122060.0,122050.0,0.0002]
[1759849953215,3.43636046,122060.0,122050.0,0.0002]
[1759849953428,3.66106046,122060.0,122050.0,0.0002]
[1759849953867,3.68606046,122060.0,122050.0,0.0002]
[1759849954532,0.16392099,122010.0,122000.0,0.10260749]
[1759849954796,0.44857305,122010.0,122000.0,0.06556749]
[1759849955623,0.44857305,122010.0,122000.0,0.0002]
[1759849955765,0.28465206,122010.0,122000.0,0.0002]
[1759849955982,0.44857305,122010.0,122000.0,0.0002]
[1759849956180,1.38144861,122010.0,122000.0,0.0002]
[1759849956438,1.40284329,122010.0,122000.0,0.0002]
[1759849956641,1.38144861,122010.0,122000.0,0.0002]
[1759849957098,0.44857305,122010.0,122000.0,0.0002]
[1759849957532,0.28465206,122010.0,122000.0,0.0002]
[1759849957742,0.08312206,122010.0,122000.0,0.0002]
[1759849957892,0.16095206,122010.0,122000.0,0.0002]
[1759849958180,0.08312206,122010.0,122000.0,0.0002]
[1759849958556,0.09451,122030.0,122000.0,0.2455192]
[1759849958765,0.09451,122030.0,122010.0,0.41167965]
[1759849958766,0.08312206,122030.0,122010.0,0.41167965]
[1759849958980,0.0279,122040.0,122020.0,0.16390755]
[1759849959203,0.11102206,122040.0,122020.0,0.16390708]
[1759849959565,0.08312206,122040.0,122020.0,0.16390746]
[1759849959763,0.08312206,122040.0,122020.0,0.19214746]
[1759849959975,0.08312206,122040.0,122020.0,0.2396491]
[1759849960156,0.27490373,122040.0,122020.0,0.07574164]
[1759849960399,0.34411536,122040.0,122010.0,0.34]
[1759849960615,0.25566206,122030.0,122000.0,0.20589834]
[1759849960825,0.22776206,122030.0,122020.0,0.24756]
[1759849961030,0.08312206,122030.0,122020.0,0.24756]
[1759849961233,0.25566206,122030.0,122020.0,0.24756]
[1759849961446,0.15855206,122030.0,122020.0,0.24756]
[1759849961657,0.12501,122050.0,122020.0,0.53842794]
[1759849961857,0.12501,122050.0,122020.0,0.34628392]
[1759849961858,0.08312206,122040.0,122020.0,0.34628392]
[1759849962113,0.274904,122040.0,122020.0,0.34628392]
[1759849962309,0.274904,122040.0,122020.0,0.09872392]
[1759849962518,0.372014,122040.0,122030.0,0.24752]
[1759849962734,0.25566206,122040.0,122030.0,0.24752]
[1759849962940,0.53175493,122060.0,122030.0,0.32482]
[1759849963133,0.0279,122050.0,122030.0,0.24752]
[1759849963336,0.0279,122050.0,122030.0,0.41141341]
[1759849963522,0.20813206,122060.0,122030.0,0.50829626]
[1759849963729,0.11102206,122060.0,122040.0,0.16387932]
[1759849963944,0.05533,122070.0,122050.0,0.24732]
[1759849964092,0.13845206,122070.0,122050.0,0.24732]
[1759849964332,0.0279,122080.0,122060.0,0.08516]
[1759849964550,0.11102206,122080.0,122070.0,0.24728]
[1759849964763,0.27484905,122080.0,122070.0,0.24728]
[1759849964963,0.3223795,122080.0,122050.0,0.32366853]
[1759849965151,0.3223795,122080.0,122060.0,0.33244]
[1759849965580,0.25566206,122080.0,122060.0,0.33244]
[1759849965842,0.37197576,122070.0,122030.0,0.33223527]
[1759849966024,0.12501,122060.0,122040.0,0.33236]
[1759849966221,0.11102206,122060.0,122040.0,0.49623929]
[1759849966488,0.0279,122070.0,122050.0,0.19210726]
[1759849966737,0.0279,122080.0,122060.0,0.41109194]
[1759849966951,0.34405938,122080.0,122060.0,0.24724]
[1759849967142,0.07543,122070.0,122040.0,0.4482368]
[1759849967280,0.10286,122070.0,122040.0,0.62030628]
[1759849967477,0.17254,122070.0,122040.0,0.61211676]
[1759849967686,0.4195044,122070.0,122040.0,0.4482368]
[1759849967896,0.05533,122060.0,122040.0,0.34]
[1759849968100,0.3445428,122070.0,122050.0,0.33256]
[1759849968306,0.3166428,122070.0,122050.0,0.33256]
[1759849968505,0.11102206,122070.0,122050.0,0.49642726]
[1759849968708,0.0279,122080.0,122050.0,0.70554406]
[1759849968914,0.11102206,122080.0,122060.0,0.19209326]
[1759849969148,0.08312206,122080.0,122070.0,0.24732]
[1759849969889,0.4194902,122080.0,122070.0,0.24728]
[1759849970268,0.4194902,122080.0,122070.0,0.24724]
[1759849971167,0.4432302,122080.0,122070.0,0.24716]
[1759849971372,0.15855206,122080.0,122070.0,0.24716]
[1759849971596,0.08312206,122080.0,122060.0,0.16385363]
[1759849971826,0.00085422,122090.0,122070.0,0.56074041]
[1759849972016,0.00085422,122090.0,122080.0,0.29294699]
[1759849972453,0.00085422,122090.0,122080.0,0.31258699]
[1759849972763,0.00085422,122090.0,122080.0,0.14876]
[1759849972968,0.08397628,122090.0,122080.0,0.05889404]
[1759849973184,0.15940628,122090.0,122080.0,0.39097404]
[1759849973472,0.15940628,122090.0,122080.0,0.05889404]
[1759849973705,0.08397628,122090.0,122080.0,0.39101404]
[1759849973913,0.11187628,122090.0,122080.0,0.33212]
[1759849974131,0.44407254,122090.0,122050.0,0.59273235]
[1759849974367,0.39243254,122090.0,122060.0,0.36847269]
[1759849974549,0.0279,122080.0,122060.0,0.4402768]
[1759849974760,0.3728044,122090.0,122060.0,0.4402768]
[1759849975183,0.0279,122080.0,122070.0,0.33196]
[1759849975379,0.41949024,122080.0,122070.0,0.33243032]
[1759849975614,0.25566206,122080.0,122070.0,0.33243032]
[1759849975834,0.11102206,122080.0,122070.0,0.33243032]
[1759849976034,0.08312206,122080.0,122070.0,0.33243032]
[1759849976348,0.44902905,122080.0,122070.0,0.24711032]
[1759849976733,0.28520206,122080.0,122070.0,0.24711032]
[1759849976942,0.08312206,122080.0,122070.0,0.24711032]
[1759849977802,0.02875422,122090.0,122070.0,0.24711032]
[1759849978045,0.11187628,122090.0,122070.0,0.24711032]
[1759849978255,0.20898628,122090.0,122070.0,0.24711032]
[1759849978456,0.11187628,122090.0,122070.0,0.24711032]
[1759849978658,0.11187628,122090.0,122070.0,0.29954651]
[1759849978993,0.37280118,122090.0,122070.0,0.24711032]
[1759849979198,0.0279,122080.0,122070.0,0.24711032]
[1759849979403,0.32237905,122080.0,122070.0,0.00051032]
[1759849979609,0.26040206,122080.0,122070.0,0.24703032]
[1759849979804,0.26040206,122080.0,122070.0,0.00051032]
[1759849980104,0.11102206,122080.0,122070.0,0.24707032]
[1759849980306,0.00085422,122090.0,122080.0,0.16382699]
[1759849980557,0.00085422,122090.0,122080.0,0.62909699]
[1759849980732,0.00085422,122090.0,122080.0,0.70177699]
[1759849981560,0.00085422,122090.0,122080.0,0.67484699]
[1759849981738,0.00085422,122090.0,122080.0,0.82521699]
[1759849981941,0.00085422,122090.0,122080.0,1.30193379]
[1759849982151,0.00085422,122090.0,122080.0,0.4116368]
[1759849982397,0.00085422,122090.0,122080.0,0.65029379]
[1759849982600,0.13042628,122090.0,122070.0,0.00051032]
[1759849982753,0.25949628,122090.0,122070.0,0.00051032]
[1759849982956,0.11234206,122080.0,122070.0,0.00051032]
[1759849983168,0.34879905,122080.0,122070.0,0.00051032]
[1759849983382,0.45163905,122080.0,122070.0,0.05599032]
[1759849983817,0.45163905,122080.0,122070.0,0.00051032]
[1759849984028,0.45163905,122080.0,122070.0,0.05387032]
[1759849984451,0.45163905,122080.0,122070.0,0.00051032]
[1759849987364,1.47878889,122080.0,122070.0,0.00051032]
[1759849987586,2.97475289,122080.0,122070.0,0.00051032]
[1759849987771,2.09712789,122080.0,122070.0,0.00051032]
[1759849988055,2.13971189,122080.0,122070.0,0.00051032]
[1759849988883,2.13963189,122080.0,122070.0,0.00051032]
[1759849989089,2.13955189,122080.0,122070.0,0.00051032]
[1759849989706,0.79163905,122080.0,122070.0,0.00051032]
[1759849990515,1.47878889,122080.0,122070.0,0.00051032]
[1759849990725,1.70030089,122080.0,122070.0,0.00051032]
[1759849990864,1.72530089,122080.0,122070.0,0.00051032]
[1759849991230,2.41245073,122080.0,122070.0,0.00051032]
[1759849992287,0.16388069,122040.0,122030.0,0.06536749]
[1759849992532,1.39323259,122040.0,122030.0,0.06536749]
[1759849992739,0.70608275,122040.0,122030.0,0.06536749]
[1759849992959,0.16390755,122020.0,122010.0,0.06536749]
[1759849993164,0.24702961,122020.0,122010.0,0.31144749]
[1759849993368,0.12957206,122020.0,122010.0,0.31451094]
[1759849993579,0.29347961,122020.0,122010.0,0.31451094]
[1759849993791,0.12957206,122020.0,122010.0,0.24914345]
[1759849994003,0.08312206,122020.0,122010.0,0.24914345]
[1759849994205,0.36610961,122020.0,122010.0,0.24914345]
[1759849994411,0.20220206,122020.0,122010.0,0.24914345]
[1759849994801,0.08312206,122020.0,122010.0,0.24914345]
[1759849995155,0.36610961,122020.0,122010.0,0.00306345]
[1759849995356,0.36610961,122020.0,122010.0,0.11082345]
[1759849995569,0.36610961,122020.0,122010.0,0.00306345]
[1759849996260,0.20220206,122020.0,122010.0,0.00306345]
[1759849996471,0.36610961,122020.0,122010.0,0.00306345]
[1759849996956,0.12957206,122020.0,122010.0,0.00306345]
[1759849997165,0.36610961,122020.0,122010.0,0.00306345]
[1759849997383,1.87501213,122020.0,122010.0,0.00306345]
[1759849997601,1.39325945,122020.0,122010.0,0.00306345]
[1759849997817,0.70610961,122020.0,122010.0,0.00306345]
[1759849998045,0.87154661,122020.0,122010.0,0.00306345]
[1759849998263,1.55869645,122020.0,122010.0,0.00306345]
[1759849998938,0.87154661,122020.0,122010.0,0.00306345]
[1759849999378,1.80441645,122020.0,122010.0,0.00306345]
[1759849999598,1.55869645,122020.0,122010.0,0.00306345]
[1759849999782,0.70610961,122020.0,122010.0,0.00306345]
[1759850000025,0.95178961,122020.0,122010.0,0.00306345]
[1759850000207,0.70610961,122020.0,122010.0,0.00306345]
[1759850000708,1.58425945,122020.0,122010.0,0.00306345]
[1759850000920,1.82989945,122020.0,122010.0,0.00306345]
[1759850001167,1.14274961,122020.0,122010.0,0.00306345]
[1759850001410,1.82989945,122020.0,122010.0,0.00306345]
[1759850001865,1.11647961,122020.0,122010.0,0.00306345]
[1759850002074,1.14108448,122020.0,122010.0,0.00306345]
[1759850002462,1.82823432,122020.0,122010.0,0.00306345]
[1759850002677,1.16608448,122020.0,122010.0,0.00306345]
[1759850002891,0.73071448,122020.0,122010.0,0.00306345]
[1759850003106,0.20220206,122020.0,122010.0,0.00306345]
[1759850003319,0.12957206,122020.0,122010.0,0.00306345]
[1759850003521,0.20220206,122020.0,122010.0,0.00306345]
[1759850003736,0.20220206,122020.0,122010.0,0.24866345]
[1759850004440,0.36610961,122020.0,122010.0,0.24866345]
[1759850004634,0.36610961,122020.0,122010.0,0.00306345]
[1759850004853,0.36610961,122020.0,122010.0,0.24854345]
[1759850005070,0.36565561,122020.0,122010.0,0.24846345]
[1759850005517,0.36565561,122020.0,122010.0,0.00306345]
[1759850005744,0.20174806,122020.0,122010.0,0.24846345]
[1759850005974,0.36565561,122020.0,122010.0,0.24838345]
[1759850006491,0.20174806,122020.0,122010.0,0.24838345]
[1759850006695,0.36565561,122020.0,122010.0,0.24838345]
[1759850006905,0.36565561,122020.0,122010.0,0.00306345]
[1759850007120,0.70565561,122020.0,122010.0,0.00306345]
[1759850007532,0.73025887,122020.0,122010.0,0.00306345]
[1759850008829,0.73025887,122020.0,122010.0,1e-08]
[1759850008830,2.55465371,122020.0,122010.0,1e-08]
[1759850009097,2.65465371,122020.0,122010.0,1e-08]
[1759850009725,2.40941371,122020.0,122010.0,1e-08]
[1759850009971,2.65457371,122020.0,122010.0,1e-08]
[1759850010186,2.40941371,122020.0,122010.0,1e-08]
[1759850010388,2.65453371,122020.0,122010.0,1e-08]
[1759850010592,2.70368371,122020.0,122000.0,1e-08]
[1759850010808,6.29919289,122010.0,122000.0,1e-08]
[1759850011196,3.99075189,122010.0,122000.0,1e-08]
[1759850011335,0.70091305,122010.0,122000.0,1e-08]
[1759850011585,0.36091305,122010.0,122000.0,1e-08]
[1759850011790,0.70091305,122010.0,122000.0,1e-08]
[1759850011987,1.30960889,122010.0,122000.0,1e-08]
[1759850012210,1.48924989,122010.0,122000.0,1e-08]
[1759850012404,0.70091305,122010.0,122000.0,1e-08]
[1759850013602,1.49806289,122010.0,122000.0,1e-08]
[1759850013781,1.74358289,122010.0,122000.0,1e-08]
[1759850013993,1.86358289,122010.0,122000.0,1e-08]
[1759850014201,0.93091305,122010.0,122000.0,1e-08]
[1759850014398,1.86354289,122010.0,122000.0,1e-08]
[1759850014563,1.17639305,122010.0,122000.0,1e-08]
[1759850014953,0.16396604,121980.0,121960.0,0.06536749]
[1759850015170,0.12988206,121970.0,121960.0,0.06536749]
[1759850015595,0.12988206,121970.0,121950.0,0.24919898]
[1759850015779,0.36096931,121970.0,121950.0,0.07443963]
[1759850016011,0.41549931,121970.0,121940.0,0.65458238]
[1759850016191,0.23109854,121960.0,121920.0,0.2459139]
[1759850016437,0.08312206,121950.0,121930.0,0.83450851]
[1759850016816,0.09333,121980.0,121940.0,0.2160856]
[1759850017025,0.08312206,121970.0,121940.0,0.3645124]
[1759850017380,0.08312206,121970.0,121950.0,0.16399617]
[1759850017585,0.23104574,122000.0,121970.0,0.16397429]
[1759850017789,0.24707005,121990.0,121970.0,0.15363]
[1759850017988,0.08312206,121990.0,121970.0,0.31760426]
[1759850018429,0.08312206,121990.0,121980.0,0.24524]
[1759850020635,0.36401374,121990.0,121960.0,0.07198]
[1759850020847,0.2368413,121980.0,121950.0,0.17220144]
[1759850021057,0.15600206,121980.0,121970.0,0.24492]
[1759850021283,0.12718206,121980.0,121970.0,0.24492]
[1759850021502,0.07373488,122020.0,122000.0,0.16393393]
[1759850021686,0.08397694,122020.0,122010.0,0.245]
[1759850021928,0.12803694,122020.0,121980.0,0.17213491]
[1759850022141,0.34837441,122010.0,121970.0,0.41198]
[1759850022324,0.34837441,122010.0,121990.0,0.24524]
[1759850022325,0.21132206,122010.0,121990.0,0.24524]
[1759850022473,0.04406,122000.0,121990.0,0.278284]
[1759850022665,0.12718206,122000.0,121990.0,0.278284]
[1759850023111,0.20006206,122000.0,121990.0,0.24544]
[1759850023525,0.08312206,122000.0,121990.0,0.40938786]
[1759850023735,0.27273153,122020.0,121990.0,0.45579786]
[1759850023736,0.2458383,122020.0,121990.0,0.45579786]
[1759850023930,0.08312206,122010.0,122000.0,0.24536]
[1759850024357,0.12718206,122010.0,122000.0,0.24536]
[1759850024977,0.12718206,122010.0,122000.0,0.24532]
[1759850024978,0.39243305,122010.0,122000.0,0.24532]
[1759850025346,0.22851206,122010.0,122000.0,0.24532]
[1759850025541,0.20006206,122010.0,122000.0,0.24532]
[1759850025751,0.39243305,122010.0,122000.0,0.24532]
[1759850025947,0.22851206,122010.0,122000.0,0.24532]
[1759850026152,0.31955305,122010.0,122000.0,0.24532]
[1759850026463,0.22851206,122010.0,122000.0,0.24532]
[1759850026687,0.39243305,122010.0,122000.0,0.24532]
[1759850027319,0.16393805,122000.0,121970.0,0.41198]
[1759850027517,0.40218011,122000.0,121980.0,0.24496]
[1759850027787,0.04406,121990.0,121960.0,0.23753238]
[1759850027952,0.10133,121980.0,121960.0,0.0852]
[1759850028182,0.18445206,121980.0,121970.0,0.245]
[1759850028337,0.39247336,121980.0,121970.0,0.245]
[1759850028698,0.38247336,121980.0,121970.0,0.245]
[1759850028912,0.21851206,121980.0,121970.0,0.245]
[1759850029142,0.17213477,122000.0,121970.0,0.245]
[1759850029354,0.08312206,122000.0,121980.0,0.163961]
[1759850029565,0.00085488,122020.0,121990.0,0.45527786]
[1759850029755,0.08312206,122010.0,121990.0,0.52725786]
[1759850030912,0.08312206,122010.0,122000.0,0.245]
[1759850031111,0.24704305,122010.0,122000.0,0.2695]
[1759850031330,0.08312206,122010.0,122000.0,0.24496]
[1759850032357,0.16476275,122020.0,122000.0,0.29137]
[1759850032537,0.24788481,122020.0,122000.0,0.29137]
[1759850033185,0.34921481,122020.0,122000.0,0.24496]
[1759850033392,0.24788501,122020.0,122000.0,0.24496]
[1759850034210,0.34921501,122020.0,122000.0,0.24496]
[1759850034423,0.00085488,122020.0,122010.0,0.86703099]
[1759850034641,0.00085488,122020.0,122010.0,0.64987099]
[1759850034864,0.00085488,122020.0,122010.0,0.45839]
[1759850035102,0.00085488,122020.0,122010.0,0.06797513]
[1759850035311,0.29194582,122020.0,122000.0,0.05742851]
[1759850035518,0.39327449,122020.0,121990.0,0.17214525]
[1759850035737,0.39327449,122020.0,121980.0,0.23752485]
[1759850035738,0.42014449,122020.0,121980.0,0.23752485]
[1759850035965,0.39327449,122020.0,122000.0,0.0852]
[1759850036174,0.42014449,122020.0,122010.0,0.24472]
[1759850036379,0.36482449,122020.0,122010.0,0.24472]
[1759850036583,0.00085488,122020.0,122010.0,0.29113]
[1759850036792,0.00085488,122020.0,122010.0,0.24472]
[1759850036971,0.00085488,122020.0,122010.0,0.29874638]
[1759850037180,0.42014449,122020.0,122010.0,0.24472]
[1759850037564,0.42014449,122020.0,122010.0,0.24468]
[1759850037763,0.42014449,122020.0,121990.0,0.16394771]
[1759850037973,0.31992665,122010.0,121980.0,0.13734749]
[1759850038184,0.31992454,122010.0,121980.0,0.36625983]
[1759850038383,0.15600206,122010.0,121990.0,0.4937869]
[1759850038604,0.04406,122000.0,121980.0,0.22891261]
[1759850038919,0.20006206,122000.0,121990.0,0.2446]
[1759850039461,0.2420679,122020.0,121990.0,0.29054]
[1759850039689,0.24704311,122010.0,121990.0,0.29054]
[1759850039915,0.31615311,122010.0,121990.0,0.30623391]
[1759850040155,0.31615311,122010.0,121990.0,0.2446]
[1759850040370,0.08312206,122010.0,122000.0,0.00051074]
[1759850040589,0.36178305,122010.0,122000.0,0.00051074]
[1759850041235,0.36178305,122010.0,122000.0,0.24507074]
[1759850041469,0.36178305,122010.0,122000.0,0.00051074]
[1759850041752,0.00085488,122020.0,122000.0,0.29093074]
[1759850042005,0.00085488,122020.0,122010.0,0.16392099]
[1759850042606,0.04648488,122020.0,122000.0,0.02960381]
[1759850042761,0.11559488,122020.0,122010.0,0.24484]
[1759850043296,0.11559488,122020.0,122010.0,0.40876099]
[1759850043297,0.00085488,122020.0,122010.0,0.40876099]
[1759850043702,0.00085488,122020.0,122010.0,0.16392099]
[1759850043908,0.00085488,122020.0,122010.0,0.57277755]
[1759850044490,0.04648488,122020.0,122010.0,0.52683755]
[1759850044696,0.04648488,122020.0,122010.0,0.36291656]
[1759850044902,0.04648488,122020.0,122010.0,0.33008]
[1759850045105,0.19871694,122020.0,122010.0,0.24484]
[1759850045571,0.12960694,122020.0,122010.0,0.40876099]
[1759850045775,0.00085488,122020.0,122010.0,0.52054155]
[1759850045981,0.00085488,122020.0,122010.0,0.58898155]
[1759850046577,0.00085488,122020.0,122010.0,0.92898155]
[1759850046810,0.00085488,122020.0,122010.0,1.01210361]
[1759850047616,0.00085488,122020.0,122010.0,0.76726361]
[1759850047929,0.00085488,122020.0,122010.0,1.43798361]
[1759850049735,0.00085488,122020.0,122010.0,0.76726361]
[1759850049942,0.00085488,122020.0,122010.0,1.43790361]
[1759850050341,0.00085488,122020.0,122010.0,1.84216861]
[1759850050540,0.00085488,122020.0,122010.0,1.83163761]
[1759850050924,0.00085488,122020.0,122010.0,1.68063761]
[1759850051101,0.00085488,122020.0,122010.0,1.56513761]
[1759850051303,0.00085488,122020.0,122010.0,1.47964961]
[1759850051436,0.00085488,122020.0,122010.0,1.56480961]
[1759850052077,0.00085488,122020.0,122010.0,1.47960961]
[1759850052307,0.00085488,122020.0,122010.0,0.76726361]
[1759850052530,0.00085488,122020.0,122010.0,1.43794361]
[1759850052753,0.00085488,122020.0,122010.0,1.35270361]
[1759850053215,0.00085488,122020.0,122010.0,1.43786361]
[1759850055473,0.00085488,122020.0,122010.0,1.43774361]
[1759850056613,0.00085488,122020.0,122010.0,1.56161061]
[1759850057451,0.00085488,122020.0,122010.0,0.76726361]
[1759850057789,0.00085488,122020.0,122010.0,1.11002155]
[1759850058012,0.00085488,122020.0,122010.0,0.68414155]
[1759850058241,0.00085488,122020.0,122010.0,1.28586155]
[1759850058479,0.00085488,122020.0,122010.0,0.94586155]
[1759850058701,0.00085488,122020.0,122010.0,1.01430155]
[1759850059149,0.00085488,122020.0,122010.0,1.35430155]
[1759850059885,0.00085488,122020.0,122010.0,0.61570155]
[1759850060126,0.00085488,122020.0,122010.0,0.60510155]
[1759850060367,0.04648488,122020.0,122000.0,0.00051074]
[1759850060604,0.11559488,122020.0,122000.0,0.00051074]
[1759850060886,0.36262507,122020.0,122000.0,0.00051074]
[1759850061351,0.06911,122010.0,122000.0,0.08567074]
[1759850061579,0.19786206,122010.0,122000.0,0.01132031]
[1759850061820,0.19786206,122010.0,122000.0,0.24475074]
[1759850062038,0.19786206,122010.0,122000.0,0.00051074]
[1759850062261,0.36178305,122010.0,122000.0,0.24475074]
[1759850062745,0.36178305,122010.0,122000.0,0.00051074]
[1759850062951,0.36178305,122010.0,122000.0,0.18855074]
[1759850064649,0.29267305,122010.0,122000.0,0.18855074]
[1759850064854,0.29267305,122010.0,122000.0,0.00051074]
[1759850065062,1.65281905,122010.0,122000.0,0.00051074]
[1759850065685,0.95561505,122010.0,122000.0,0.00051074]
[1759850067129,0.98061505,122010.0,122000.0,0.00051074]
[1759850067331,1.9171348,122010.0,122000.0,0.00051074]
[1759850067528,2.0240448,122010.0,122000.0,0.00051074]
[1759850067792,1.08752505,122010.0,122000.0,0.00051074]
[1759850068077,2.08483297,122010.0,122000.0,0.00051074]
[1759850068832,2.32911297,122010.0,122000.0,0.00051074]
[1759850069051,1.39259322,122010.0,122000.0,0.00051074]
[1759850069482,1.14831322,122010.0,122000.0,0.00051074]
[1759850069680,1.21010905,122010.0,122000.0,0.00051074]
[1759850070072,0.96582905,122010.0,122000.0,0.00051074]
[1759850070254,1.21010905,122010.0,122000.0,0.00051074]
[1759850071049,0.99043558,122010.0,122000.0,0.01051074]
[1759850071256,1.23475558,122010.0,122000.0,0.01051074]
[1759850072090,0.99043558,122010.0,122000.0,0.01051074]
[1759850072351,1.23475558,122010.0,122000.0,0.01051074]
[1759850072800,1.29744895,122010.0,122000.0,0.01051074]
[1759850074305,1.23475558,122010.0,122000.0,0.01051074]
[1759850075432,2.19627533,122010.0,122000.0,0.01051074]
[1759850075811,1.25975558,122010.0,122000.0,0.01051074]
[1759850076183,2.19627533,122010.0,122000.0,0.01051074]
[1759850077285,1.32054375,122010.0,122000.0,0.01051074]
[1759850077485,2.2570635,122010.0,122000.0,0.01051074]
[1759850077722,1.32054375,122010.0,122000.0,0.01051074]
[1759850078089,2.2570635,122010.0,122000.0,0.01051074]
[1759850079112,0.50394786,121990.0,121980.0,0.1]
[1759850079397,2.70413892,121990.0,121980.0,0.1]
[1759850079623,3.88935867,121990.0,121980.0,0.1010217]
[1759850080252,2.95283892,121990.0,121980.0,0.1010217]
[1759850080625,2.70851892,121990.0,121980.0,0.1010217]
[1759850080798,1.22805792,121990.0,121980.0,0.1010217]
[1759850080998,1.24414792,121990.0,121980.0,0.1010217]
[1759850082853,0.16401508,121940.0,121920.0,0.12772]
[1759850083063,0.07389,121930.0,121920.0,0.12772]
[1759850083267,0.23791854,121930.0,121920.0,0.12772]
[1759850083507,0.30690854,121930.0,121920.0,0.1719541]
[1759850083716,0.30690854,121930.0,121920.0,0.0444341]
[1759850083717,0.4163806,121930.0,121920.0,0.0444341]
[1759850083924,0.4432006,121930.0,121920.0,0.24452]
[1759850084160,0.4642906,121930.0,121920.0,0.0002]
[1759850086898,0.25235206,121930.0,121920.0,0.0002]
[1759850087144,0.08312206,121930.0,121920.0,0.16922]
[1759850087275,0.12986206,121930.0,121920.0,0.12392]
[1759850087482,0.25235206,121930.0,121920.0,0.24452]
[1759850087675,0.4432006,121930.0,121920.0,0.24456]